[Event "*** Titled Tuesday Blitz"]
[Site "Chess.com"]
[Date "2020.05.19"]
[Round "7"]
[White "rekosheten"]
[Black "Mr_Sinigami"]
[Result "0-1"]
[WhiteElo "2347"]
[BlackElo "2572"]
[TimeControl "180+1"]
[EndTime "13:21:36 PDT"]
[Termination "Mr_Sinigami won by resignation"]

1. Nf3 {[%clk 0:02:13.4]} 1... Nf6 {[%clk 0:02:58.1]} 2. c4 {[%clk 0:02:13]}
2... g6 {[%clk 0:02:57.2]} 3. d4 {[%clk 0:02:10.1]} 3... Bg7 {[%clk 0:02:57.1]}
4. Nc3 {[%clk 0:02:10.6]} 4... O-O {[%clk 0:02:57.5]} 5. Bf4 {[%clk 0:02:10.7]}
5... d6 {[%clk 0:02:55]} 6. e3 {[%clk 0:02:10.6]} 6... Nfd7 {[%clk 0:02:54.7]}
7. h3 {[%clk 0:02:02.2]} 7... e5 {[%clk 0:02:53.9]} 8. Bh2 {[%clk 0:02:02.7]}
8... Nc6 {[%clk 0:02:51.2]} 9. Be2 {[%clk 0:01:55.9]} 9... h6 {[%clk 0:02:45.1]}
10. O-O {[%clk 0:01:54.8]} 10... f5 {[%clk 0:02:44.7]} 11. Nd5 {[%clk 0:01:29]}
11... g5 {[%clk 0:02:34.8]} 12. Rc1 {[%clk 0:01:07.3]} 12... f4 {[%clk
0:02:19.6]} 13. b4 {[%clk 0:00:58.2]} 13... Ne7 {[%clk 0:01:55.3]} 14. exf4
{[%clk 0:00:36.4]} 14... Nxd5 {[%clk 0:01:42.9]} 15. cxd5 {[%clk 0:00:33.1]}
15... exf4 {[%clk 0:01:42.2]} 16. Qc2 {[%clk 0:00:28.6]} 16... Nb6 {[%clk
0:01:26.6]} 17. Qxc7 {[%clk 0:00:25.8]} 17... Nxd5 {[%clk 0:01:15.9]} 18. Qxd8
{[%clk 0:00:07.1]} 18... Rxd8 {[%clk 0:01:15]} 19. Bc4 {[%clk 0:00:08]} 19...
Be6 {[%clk 0:01:14.4]} 20. Rfe1 {[%clk 0:00:08.9]} 20... Bf7 {[%clk 0:01:08.6]}
21. a3 {[%clk 0:00:09.1]} 21... Rac8 {[%clk 0:00:59.7]} 22. g3 {[%clk
0:00:09.5]} 22... b5 {[%clk 0:00:27.3]} 23. Bxb5 {[%clk 0:00:06.5]} 23... Nc3
{[%clk 0:00:26.6]} 24. Bf1 {[%clk 0:00:04.5]} 24... Bd5 {[%clk 0:00:26]} 25. Nd2
{[%clk 0:00:03.7]} 25... f3 {[%clk 0:00:24]} 26. Ba6 {[%clk 0:00:02.8]} 26...
Rc6 {[%clk 0:00:22.2]} 27. Bb7 {[%clk 0:00:02.9]} 27... Ne2+ {[%clk 0:00:21.4]}
28. Kf1 {[%clk 0:00:02.8]} 28... Rxc1 {[%clk 0:00:20.8]} 29. Bxd5+ {[%clk
0:00:03.1]} 29... Kf8 {[%clk 0:00:21.2]} 30. Nxf3 {[%clk 0:00:03]} 30... Rxe1+
{[%clk 0:00:20.7]} 31. Kxe1 {[%clk 0:00:03.9]} 31... Nxd4 {[%clk 0:00:21.1]} 32.
Nxd4 {[%clk 0:00:03.4]} 32... Bxd4 {[%clk 0:00:21.2]} 33. g4 {[%clk 0:00:04.3]}
33... Be5 {[%clk 0:00:21.3]} 34. Bxe5 {[%clk 0:00:04.1]} 34... dxe5 {[%clk
0:00:21.8]} 35. Be4 {[%clk 0:00:04.7]} 35... Ke7 {[%clk 0:00:20.6]} 36. Ke2
{[%clk 0:00:04.5]} 36... Rd4 {[%clk 0:00:19.8]} 37. f3 {[%clk 0:00:04.5]} 37...
Kd6 {[%clk 0:00:19.3]} 38. Bd3 {[%clk 0:00:03]} 38... Kc7 {[%clk 0:00:18.7]} 39.
Kd2 {[%clk 0:00:02.4]} 39... Kb6 {[%clk 0:00:17.5]} 40. Kc3 {[%clk 0:00:02.8]}
40... a5 {[%clk 0:00:17.3]} 41. bxa5+ {[%clk 0:00:01.8]} 41... Kxa5 {[%clk
0:00:17]} 42. Bc2 {[%clk 0:00:02.7]} 42... Kb6 {[%clk 0:00:16.5]} 43. Kb3 {[%clk
0:00:02.4]} 43... Kc5 {[%clk 0:00:16.3]} 44. Be4 {[%clk 0:00:02.6]} 44... Rd2
{[%clk 0:00:16]} 45. a4 {[%clk 0:00:02.9]} 45... Rh2 {[%clk 0:00:15.6]} 46. a5
{[%clk 0:00:02.1]} 46... Kb5 {[%clk 0:00:13.5]} 47. a6 {[%clk 0:00:03]} 47...
Kxa6 {[%clk 0:00:13.4]} 48. Kc4 {[%clk 0:00:03.9]} 48... Rd2 {[%clk 0:00:12.7]}
49. Kc5 {[%clk 0:00:02.8]} 49... Ka7 {[%clk 0:00:11.4]} 50. Bd5 {[%clk
0:00:03.2]} 50... Rh2 {[%clk 0:00:06]} 51. Kd6 {[%clk 0:00:03.7]} 51... Rxh3
{[%clk 0:00:06.5]} 52. Kxe5 {[%clk 0:00:04.6]} 52... Kb6 {[%clk 0:00:06.4]} 53.
Kf5 {[%clk 0:00:05.1]} 53... Kc5 {[%clk 0:00:06.6]} 54. Be4 {[%clk 0:00:06]}
54... Kd4 {[%clk 0:00:06.9]} 55. Kg6 {[%clk 0:00:06.9]} 55... Ke3 {[%clk
0:00:06.9]} 56. Kg7 {[%clk 0:00:07.4]} 56... Kf4 {[%clk 0:00:07]} 57. Kg6 {[%clk
0:00:07.5]} 57... Rxf3 {[%clk 0:00:07.2]} 58. Bxf3 {[%clk 0:00:07.3]} 58... Kxf3
{[%clk 0:00:07.5]} 59. Kf5 {[%clk 0:00:07.5]} 59... Kg3 {[%clk 0:00:07.6]} 60.
Ke4 {[%clk 0:00:07.8]} 60... Kxg4 {[%clk 0:00:07.8]} 0-1

[Event "*** Titled Tuesday Blitz"]
[Site "Chess.com"]
[Date "2020.05.19"]
[Round "7"]
[White "Gvetadze"]
[Black "Herracek"]
[Result "1/2-1/2"]
[WhiteElo "2403"]
[BlackElo "2537"]
[TimeControl "180+1"]
[EndTime "13:21:37 PDT"]
[Termination "Game drawn by agreement"]

1. Nf3 {[%clk 0:03:00.9]} 1... c5 {[%clk 0:03:00.4]} 2. g3 {[%clk 0:03:00.8]}
2... Nc6 {[%clk 0:03:00.8]} 3. Bg2 {[%clk 0:03:00.8]} 3... g6 {[%clk 0:03:01.3]}
4. O-O {[%clk 0:03:00.9]} 4... Bg7 {[%clk 0:03:01.8]} 5. d3 {[%clk 0:03:01]}
5... d6 {[%clk 0:03:02.3]} 6. Nc3 {[%clk 0:03:00.7]} 6... Bg4 {[%clk 0:03:02.8]}
7. e4 {[%clk 0:03:00.7]} 7... Qd7 {[%clk 0:03:02.5]} 8. Be3 {[%clk 0:02:59.5]}
8... Bh3 {[%clk 0:03:02.6]} 9. Qd2 {[%clk 0:02:58.7]} 9... h5 {[%clk 0:03:02.9]}
10. Nh4 {[%clk 0:02:57.2]} 10... Bf6 {[%clk 0:02:58.4]} 11. Bg5 {[%clk 0:02:56]}
11... Bxg5 {[%clk 0:02:54.1]} 12. Qxg5 {[%clk 0:02:55.1]} 12... Nd4 {[%clk
0:02:54.5]} 13. Rac1 {[%clk 0:02:49]} 13... Nf6 {[%clk 0:02:45.3]} 14. f4 {[%clk
0:02:23]} 14... O-O-O {[%clk 0:02:42.9]} 15. f5 {[%clk 0:02:19.4]} 15... Bxg2
{[%clk 0:02:42.7]} 16. Kxg2 {[%clk 0:02:17.9]} 16... gxf5 {[%clk 0:02:29.5]} 17.
Nxf5 {[%clk 0:02:17.1]} 17... Nxf5 {[%clk 0:02:16.3]} 18. Qxf5 {[%clk
0:02:15.3]} 18... Rdg8 {[%clk 0:02:10.1]} 19. Qxd7+ {[%clk 0:02:10.4]} 19...
Kxd7 {[%clk 0:02:09.9]} 20. Rce1 {[%clk 0:01:58]} 20... Rh7 {[%clk 0:01:32.9]}
21. e5 {[%clk 0:01:55.2]} 21... dxe5 {[%clk 0:01:25.7]} 22. Rxe5 {[%clk
0:01:54.2]} 22... Kd6 {[%clk 0:01:22.8]} 23. Re2 {[%clk 0:01:33.2]} 23... h4
{[%clk 0:01:22.2]} 24. Ne4+ {[%clk 0:01:29.2]} 24... Nxe4 {[%clk 0:01:22.1]} 25.
Rxe4 {[%clk 0:01:28.7]} 25... hxg3 {[%clk 0:01:22.2]} 26. hxg3 {[%clk
0:01:26.9]} 26... Rhg7 {[%clk 0:01:22.4]} 27. Rf3 {[%clk 0:01:26.4]} 27... f5
{[%clk 0:01:20.2]} 28. Ref4 {[%clk 0:01:14.4]} 28... e6 {[%clk 0:01:19.3]} 29.
d4 {[%clk 0:01:03.4]} 29... c4 {[%clk 0:01:14]} 30. Re3 {[%clk 0:00:54]} 30...
b5 {[%clk 0:01:07.5]} 31. Kf2 {[%clk 0:00:52.4]} 31... a5 {[%clk 0:01:05.6]} 32.
c3 {[%clk 0:00:36.6]} 32... b4 {[%clk 0:01:04.8]} 33. Rff3 {[%clk 0:00:32.1]}
33... Rg4 {[%clk 0:00:56.6]} 34. Re5 {[%clk 0:00:28.2]} 34... f4 {[%clk
0:00:42.9]} 35. Rxf4 {[%clk 0:00:22]} 35... Rxg3 {[%clk 0:00:42.7]} 36. Rxa5
{[%clk 0:00:21.1]} 36... Rg2+ {[%clk 0:00:39.5]} 37. Ke3 {[%clk 0:00:20.2]}
37... Rxb2 {[%clk 0:00:29.5]} 38. Ra6+ {[%clk 0:00:19.7]} 38... Kd5 {[%clk
0:00:25.1]} 39. Ra5+ {[%clk 0:00:19]} 39... Kc6 {[%clk 0:00:25.1]} 40. cxb4
{[%clk 0:00:16.5]} 40... Rg3+ {[%clk 0:00:22.2]} 41. Rf3 {[%clk 0:00:16]} 41...
Rxf3+ {[%clk 0:00:22.1]} 42. Kxf3 {[%clk 0:00:16.9]} 42... Rxb4 {[%clk
0:00:19.8]} 43. Ke4 {[%clk 0:00:16.4]} 43... Rb2 {[%clk 0:00:16.1]} 44. Rc5+
{[%clk 0:00:15.6]} 44... Kd6 {[%clk 0:00:16.6]} 45. a4 {[%clk 0:00:15.6]} 45...
Re2+ {[%clk 0:00:15.1]} 46. Kf3 {[%clk 0:00:15.2]} 46... Rc2 {[%clk 0:00:15.6]}
47. a5 {[%clk 0:00:14.7]} 47... c3 {[%clk 0:00:15.5]} 48. a6 {[%clk 0:00:14.4]}
48... Ra2 {[%clk 0:00:15.6]} 49. Rxc3 {[%clk 0:00:14]} 49... Kd5 {[%clk
0:00:15.8]} 50. Ke3 {[%clk 0:00:13.4]} 50... Rxa6 {[%clk 0:00:16.4]} 51. Rc5+
{[%clk 0:00:13.5]} 51... Kd6 {[%clk 0:00:17]} 52. Ke4 {[%clk 0:00:13.6]} 52...
Ra1 {[%clk 0:00:17.5]} 53. Rc3 {[%clk 0:00:13.2]} 53... Re1+ {[%clk 0:00:17.8]}
54. Re3 {[%clk 0:00:13.6]} 54... Rg1 {[%clk 0:00:17.3]} 55. Kd3 {[%clk
0:00:13.3]} 55... Rg4 {[%clk 0:00:17.2]} 56. Re4 {[%clk 0:00:13.4]} 56... Rg3+
{[%clk 0:00:16.5]} 57. Re3 {[%clk 0:00:13.3]} 57... Rg5 {[%clk 0:00:16.2]} 58.
Re4 {[%clk 0:00:13.2]} 58... Ra5 {[%clk 0:00:16.2]} 59. Re3 {[%clk 0:00:14.1]}
59... Ra4 {[%clk 0:00:15.4]} 60. Ke4 {[%clk 0:00:15]} 60... e5 {[%clk
0:00:15.8]} 61. Rd3 {[%clk 0:00:15]} 61... Ke6 {[%clk 0:00:15.8]} 62. Ke3 {[%clk
0:00:15]} 62... Kd5 {[%clk 0:00:15.3]} 63. dxe5+ {[%clk 0:00:14.7]} 63... Kxe5
{[%clk 0:00:16.2]} 64. Rb3 {[%clk 0:00:15.1]} 1/2-1/2

[Event "*** Titled Tuesday Blitz"]
[Site "Chess.com"]
[Date "2020.05.19"]
[Round "7"]
[White "PavelShkapenko"]
[Black "ZEN-22"]
[Result "0-1"]
[WhiteElo "2660"]
[BlackElo "2528"]
[TimeControl "180+1"]
[EndTime "13:21:39 PDT"]
[Termination "ZEN-22 won by resignation"]

1. e4 {[%clk 0:03:00.9]} 1... e6 {[%clk 0:02:32]} 2. d4 {[%clk 0:02:58.7]} 2...
c5 {[%clk 0:02:32.4]} 3. c3 {[%clk 0:02:53.3]} 3... d5 {[%clk 0:02:31.3]} 4.
exd5 {[%clk 0:02:53.5]} 4... exd5 {[%clk 0:02:30.1]} 5. Nf3 {[%clk 0:02:54.1]}
5... Nc6 {[%clk 0:02:30.1]} 6. g3 {[%clk 0:02:54.5]} 6... Nf6 {[%clk 0:02:21.5]}
7. Bg2 {[%clk 0:02:54.3]} 7... cxd4 {[%clk 0:02:18.9]} 8. O-O {[%clk 0:02:48]}
8... dxc3 {[%clk 0:02:10.4]} 9. Nxc3 {[%clk 0:02:48.5]} 9... Be7 {[%clk
0:02:11.1]} 10. Bg5 {[%clk 0:02:45.7]} 10... O-O {[%clk 0:02:11.6]} 11. Re1
{[%clk 0:02:41]} 11... h6 {[%clk 0:02:09.2]} 12. Bf4 {[%clk 0:02:27.3]} 12... d4
{[%clk 0:01:58.3]} 13. Nb5 {[%clk 0:02:27.1]} 13... Bb4 {[%clk 0:01:58]} 14. Rf1
{[%clk 0:02:18.1]} 14... Nd5 {[%clk 0:01:55.9]} 15. Nfxd4 {[%clk 0:02:09.2]}
15... Nxf4 {[%clk 0:01:50]} 16. gxf4 {[%clk 0:02:09.7]} 16... Nxd4 {[%clk
0:01:47.2]} 17. Qxd4 {[%clk 0:02:06.1]} 17... Qxd4 {[%clk 0:01:41]} 18. Nxd4
{[%clk 0:02:06.6]} 18... Bd2 {[%clk 0:01:38.5]} 19. f5 {[%clk 0:02:03.7]} 19...
Rd8 {[%clk 0:01:37.6]} 20. Nb3 {[%clk 0:02:00.5]} 20... Bxf5 {[%clk 0:01:34.4]}
21. Rad1 {[%clk 0:01:54.8]} 21... Bf4 {[%clk 0:01:32.2]} 22. Bxb7 {[%clk
0:01:49.6]} 22... Rxd1 {[%clk 0:01:27.9]} 23. Rxd1 {[%clk 0:01:41.3]} 23... Rb8
{[%clk 0:01:28.8]} 24. Bc6 {[%clk 0:01:36.9]} 24... Bc2 {[%clk 0:01:25.3]} 25.
Rd7 {[%clk 0:01:29.9]} 25... a5 {[%clk 0:01:04.7]} 26. Bd5 {[%clk 0:01:25.3]}
26... Bg6 {[%clk 0:01:01.6]} 27. Nxa5 {[%clk 0:01:07]} 27... Rxb2 {[%clk
0:01:00.6]} 28. Nc6 {[%clk 0:01:04.1]} 28... Bg5 {[%clk 0:00:50.2]} 29. Ne7+
{[%clk 0:00:59.7]} 29... Kh7 {[%clk 0:00:38.8]} 30. Nxg6 {[%clk 0:00:59.2]}
30... fxg6 {[%clk 0:00:38.7]} 31. a4 {[%clk 0:00:55.8]} 31... Bh4 {[%clk
0:00:37.1]} 32. Rf7 {[%clk 0:00:48.7]} 32... Rd2 {[%clk 0:00:36.6]} 33. Bc6
{[%clk 0:00:43.1]} 33... Rc2 {[%clk 0:00:28]} 34. Bb5 {[%clk 0:00:41.4]} 34...
Rb2 {[%clk 0:00:27.3]} 35. Rf4 {[%clk 0:00:37.6]} 35... Bg5 {[%clk 0:00:25.4]}
36. Re4 {[%clk 0:00:34.4]} 36... Bd8 {[%clk 0:00:21.5]} 37. Kg2 {[%clk
0:00:29.1]} 37... Bb6 {[%clk 0:00:21]} 38. Rf4 {[%clk 0:00:29.7]} 38... h5
{[%clk 0:00:19.7]} 39. h4 {[%clk 0:00:27.2]} 39... Kh6 {[%clk 0:00:19.1]} 40.
Rf3 {[%clk 0:00:25.8]} 40... Bd8 {[%clk 0:00:18.7]} 41. Kg3 {[%clk 0:00:22.7]}
41... Rb4 {[%clk 0:00:18]} 42. Rf8 {[%clk 0:00:19.3]} 42... Bxh4+ {[%clk
0:00:17.5]} 43. Kf3 {[%clk 0:00:19.6]} 43... Be7 {[%clk 0:00:18.4]} 44. Rf4
{[%clk 0:00:19.1]} 44... Rb3+ {[%clk 0:00:18.2]} 45. Kg2 {[%clk 0:00:19.1]}
45... Bd6 {[%clk 0:00:19.1]} 46. Rf3 {[%clk 0:00:19.2]} 46... Rb4 {[%clk
0:00:18.9]} 47. Re3 {[%clk 0:00:18.7]} 47... Bc5 {[%clk 0:00:18.4]} 48. Rc3
{[%clk 0:00:17.2]} 48... Bb6 {[%clk 0:00:16.7]} 49. Rc6 {[%clk 0:00:17.2]} 49...
Bd4 {[%clk 0:00:16.2]} 50. Bd3 {[%clk 0:00:16.9]} 50... Bf6 {[%clk 0:00:14.2]}
51. a5 {[%clk 0:00:16.1]} 51... Ra4 {[%clk 0:00:14]} 52. a6 {[%clk 0:00:16.3]}
52... Ra3 {[%clk 0:00:14.7]} 53. Be2 {[%clk 0:00:13.4]} 53... g5 {[%clk
0:00:14.7]} 54. Rc7 {[%clk 0:00:12.4]} 54... g4 {[%clk 0:00:15.6]} 55. Bc4
{[%clk 0:00:09.8]} 55... Bd4 {[%clk 0:00:14.2]} 56. Rd7 {[%clk 0:00:07.6]} 56...
Bf6 {[%clk 0:00:13.4]} 57. Rc7 {[%clk 0:00:07.4]} 57... Kg5 {[%clk 0:00:13.2]}
58. Bd5 {[%clk 0:00:05.8]} 58... Rxa6 {[%clk 0:00:11.3]} 59. Rc5 {[%clk
0:00:05.7]} 59... Bd4 {[%clk 0:00:08.7]} 60. Bf7+ {[%clk 0:00:05.5]} 60... Bxc5
{[%clk 0:00:08.3]} 0-1

[Event "*** Titled Tuesday Blitz"]
[Site "Chess.com"]
[Date "2020.05.19"]
[Round "7"]
[White "velemajstor767276"]
[Black "Incognito2525"]
[Result "1-0"]
[WhiteElo "2636"]
[BlackElo "2496"]
[TimeControl "180+1"]
[EndTime "13:21:39 PDT"]
[Termination "velemajstor767276 won by checkmate"]

1. d4 {[%clk 0:03:00.9]} 1... Nf6 {[%clk 0:02:57.5]} 2. Bg5 {[%clk 0:03:00.9]}
2... g6 {[%clk 0:02:58.4]} 3. Bxf6 {[%clk 0:03:01]} 3... exf6 {[%clk 0:02:58.8]}
4. e3 {[%clk 0:03:01.4]} 4... h5 {[%clk 0:02:59.4]} 5. h4 {[%clk 0:02:59.2]}
5... b6 {[%clk 0:02:58.9]} 6. Be2 {[%clk 0:02:58.1]} 6... Bb7 {[%clk 0:02:58.8]}
7. Bf3 {[%clk 0:02:58.6]} 7... d5 {[%clk 0:02:58.5]} 8. c4 {[%clk 0:02:56.7]}
8... f5 {[%clk 0:02:57.7]} 9. Nc3 {[%clk 0:02:55.1]} 9... c6 {[%clk 0:02:55.5]}
10. cxd5 {[%clk 0:02:54.4]} 10... Be7 {[%clk 0:02:46]} 11. dxc6 {[%clk
0:02:49.6]} 11... Nxc6 {[%clk 0:02:45.7]} 12. g3 {[%clk 0:02:46.1]} 12... O-O
{[%clk 0:02:42.9]} 13. Nge2 {[%clk 0:02:46]} 13... Bd6 {[%clk 0:02:34.8]} 14.
Rc1 {[%clk 0:02:42.1]} 14... Rc8 {[%clk 0:02:32]} 15. O-O {[%clk 0:02:35]} 15...
g5 {[%clk 0:02:29.5]} 16. hxg5 {[%clk 0:02:15]} 16... Qxg5 {[%clk 0:02:29.9]}
17. Kg2 {[%clk 0:02:10.9]} 17... h4 {[%clk 0:02:24.8]} 18. Rh1 {[%clk
0:01:50.7]} 18... hxg3 {[%clk 0:02:24.1]} 19. Rh5 {[%clk 0:01:43.5]} 19... Qg6
{[%clk 0:02:23.1]} 20. Qh1 {[%clk 0:01:31.6]} 20... Kg7 {[%clk 0:02:14.6]} 21.
Nxg3 {[%clk 0:01:20.8]} 21... Rh8 {[%clk 0:02:05.2]} 22. Ne2 {[%clk 0:01:16.3]}
22... Bxg3 {[%clk 0:01:31.4]} 23. Nxg3 {[%clk 0:01:06.3]} 23... Nxd4 {[%clk
0:01:13.5]} 24. Bxb7 {[%clk 0:00:33.7]} 24... Rxh5 {[%clk 0:00:27.9]} 25. Qxh5
{[%clk 0:00:32.9]} 25... Rxc1 {[%clk 0:00:26.9]} 26. exd4 {[%clk 0:00:31.2]}
26... Rc2 {[%clk 0:00:12.8]} 27. Qxf5 {[%clk 0:00:29.9]} 27... Qxf5 {[%clk
0:00:12.6]} 28. Nxf5+ {[%clk 0:00:30.8]} 28... Kf6 {[%clk 0:00:13.5]} 29. Ne3
{[%clk 0:00:28.2]} 29... Rxb2 {[%clk 0:00:14.4]} 30. Bd5 {[%clk 0:00:16]} 30...
Ke7 {[%clk 0:00:13.4]} 31. Bb3 {[%clk 0:00:14.3]} 31... a5 {[%clk 0:00:13]} 32.
Kf3 {[%clk 0:00:14.3]} 32... b5 {[%clk 0:00:11]} 33. Bd5 {[%clk 0:00:13]} 33...
f6 {[%clk 0:00:10.6]} 34. Ke4 {[%clk 0:00:10.6]} 34... Kd7 {[%clk 0:00:09.7]}
35. f4 {[%clk 0:00:09]} 35... a4 {[%clk 0:00:10.1]} 36. f5 {[%clk 0:00:07.4]}
36... b4 {[%clk 0:00:10.5]} 37. Nc4 {[%clk 0:00:06.7]} 37... Rxa2 {[%clk
0:00:10.6]} 38. Nb6+ {[%clk 0:00:06.6]} 38... Kd6 {[%clk 0:00:10.7]} 39. Bxa2
{[%clk 0:00:06.6]} 39... b3 {[%clk 0:00:10.7]} 40. Bb1 {[%clk 0:00:06.8]} 40...
Kc6 {[%clk 0:00:10.6]} 41. Nc4 {[%clk 0:00:05.9]} 41... Kb5 {[%clk 0:00:10.8]}
42. Kd3 {[%clk 0:00:06.2]} 42... Kb4 {[%clk 0:00:11.1]} 43. d5 {[%clk
0:00:06.7]} 43... Kc5 {[%clk 0:00:11.4]} 44. Kc3 {[%clk 0:00:06]} 44... Kxd5
{[%clk 0:00:11]} 45. Nb6+ {[%clk 0:00:05.9]} 45... Kc5 {[%clk 0:00:11.2]} 46.
Nxa4+ {[%clk 0:00:06.8]} 46... Kb5 {[%clk 0:00:11.6]} 47. Kxb3 {[%clk
0:00:07.1]} 47... Kc6 {[%clk 0:00:11.8]} 48. Kc3 {[%clk 0:00:07.4]} 48... Kd5
{[%clk 0:00:12.7]} 49. Kd3 {[%clk 0:00:07.7]} 49... Ke5 {[%clk 0:00:13.6]} 50.
Ke3 {[%clk 0:00:08.3]} 50... Kd5 {[%clk 0:00:13.4]} 51. Nc3+ {[%clk 0:00:08.5]}
51... Ke5 {[%clk 0:00:14.3]} 52. Kf3 {[%clk 0:00:08.3]} 52... Kd4 {[%clk
0:00:14.6]} 53. Ne2+ {[%clk 0:00:08.5]} 53... Ke5 {[%clk 0:00:15]} 54. Ng3
{[%clk 0:00:09]} 54... Kd6 {[%clk 0:00:15.4]} 55. Kf4 {[%clk 0:00:09.6]} 55...
Ke7 {[%clk 0:00:16.3]} 56. Nh5 {[%clk 0:00:09.7]} 56... Kf7 {[%clk 0:00:17.2]}
57. Ke4 {[%clk 0:00:10]} 57... Ke7 {[%clk 0:00:17.3]} 58. Kd5 {[%clk 0:00:10.5]}
58... Kf7 {[%clk 0:00:17.9]} 59. Kd6 {[%clk 0:00:11]} 59... Kg8 {[%clk
0:00:18.4]} 60. Nxf6+ {[%clk 0:00:10]} 60... Kg7 {[%clk 0:00:19.3]} 61. Ne4
{[%clk 0:00:10.3]} 61... Kh6 {[%clk 0:00:20.2]} 62. f6 {[%clk 0:00:10]} 62...
Kg6 {[%clk 0:00:20.4]} 63. Ke7 {[%clk 0:00:09.8]} 63... Kf5 {[%clk 0:00:20.5]}
64. f7 {[%clk 0:00:09.8]} 64... Ke5 {[%clk 0:00:21.4]} 65. f8=Q {[%clk 0:00:09]}
65... Kd4 {[%clk 0:00:22.3]} 66. Nd6 {[%clk 0:00:08.5]} 66... Ke3 {[%clk
0:00:23.2]} 67. Qf5 {[%clk 0:00:07.5]} 67... Ke2 {[%clk 0:00:24.1]} 68. Qe4+
{[%clk 0:00:07.5]} 68... Kd2 {[%clk 0:00:25]} 69. Qd3+ {[%clk 0:00:07.3]} 69...
Ke1 {[%clk 0:00:24.5]} 70. Qc2 {[%clk 0:00:07.1]} 70... Kf1 {[%clk 0:00:24.7]}
71. Ne4 {[%clk 0:00:07.5]} 71... Kg1 {[%clk 0:00:25.6]} 72. Qf2+ {[%clk
0:00:07.1]} 72... Kh1 {[%clk 0:00:26.5]} 73. Ng3# {[%clk 0:00:07.4]} 1-0

[Event "*** Titled Tuesday Blitz"]
[Site "Chess.com"]
[Date "2020.05.19"]
[Round "7"]
[White "Korona_91"]
[Black "InitiatingASC"]
[Result "0-1"]
[WhiteElo "2525"]
[BlackElo "2381"]
[TimeControl "180+1"]
[EndTime "13:21:39 PDT"]
[Termination "InitiatingASC won by resignation"]

1. e4 {[%clk 0:03:00]} 1... c5 {[%clk 0:02:59.6]} 2. Nf3 {[%clk 0:02:57.8]} 2...
Nc6 {[%clk 0:02:59.7]} 3. Bb5 {[%clk 0:02:56.9]} 3... Nf6 {[%clk 0:02:59.6]} 4.
Nc3 {[%clk 0:02:56.5]} 4... g6 {[%clk 0:02:59.6]} 5. Bxc6 {[%clk 0:02:51.7]}
5... dxc6 {[%clk 0:02:57.9]} 6. e5 {[%clk 0:02:51.8]} 6... Nd5 {[%clk
0:02:57.5]} 7. Ne4 {[%clk 0:02:51.4]} 7... b6 {[%clk 0:02:55.9]} 8. O-O {[%clk
0:02:47.7]} 8... Bg7 {[%clk 0:02:55.4]} 9. c4 {[%clk 0:02:48.1]} 9... Nc7 {[%clk
0:02:54.4]} 10. d3 {[%clk 0:02:43.6]} 10... Bg4 {[%clk 0:02:49]} 11. Bf4 {[%clk
0:02:38.1]} 11... Ne6 {[%clk 0:02:48.2]} 12. Bg3 {[%clk 0:02:36.6]} 12... Nd4
{[%clk 0:02:47.6]} 13. Ned2 {[%clk 0:02:32.6]} 13... Bf5 {[%clk 0:02:37.7]} 14.
Ne4 {[%clk 0:02:23]} 14... Bg4 {[%clk 0:02:27.9]} 15. Re1 {[%clk 0:02:11.4]}
15... O-O {[%clk 0:02:23.2]} 16. Ned2 {[%clk 0:01:47.8]} 16... Qd7 {[%clk
0:02:20.5]} 17. h3 {[%clk 0:01:45.7]} 17... Bf5 {[%clk 0:02:19.4]} 18. Ne4
{[%clk 0:01:42.3]} 18... Rad8 {[%clk 0:02:16.5]} 19. Re3 {[%clk 0:01:10.9]}
19... Bh6 {[%clk 0:02:11.3]} 20. Re1 {[%clk 0:01:02.4]} 20... Nxf3+ {[%clk
0:02:08.4]} 21. Qxf3 {[%clk 0:01:00.4]} 21... Qxd3 {[%clk 0:02:07.9]} 22. Qxd3
{[%clk 0:00:58.7]} 22... Rxd3 {[%clk 0:02:06.2]} 23. Nc3 {[%clk 0:00:53.3]}
23... Rfd8 {[%clk 0:01:58]} 24. Bh4 {[%clk 0:00:52.8]} 24... Kf8 {[%clk
0:01:54.4]} 25. g4 {[%clk 0:00:51.7]} 25... Be6 {[%clk 0:01:53.8]} 26. Kg2
{[%clk 0:00:46.8]} 26... Bd2 {[%clk 0:01:50.1]} 27. Re2 {[%clk 0:00:46]} 27...
Bxc3 {[%clk 0:01:46.2]} 28. bxc3 {[%clk 0:00:46.6]} 28... Rxc3 {[%clk
0:01:44.8]} 29. f4 {[%clk 0:00:46.8]} 29... Bxc4 {[%clk 0:01:43.1]} 30. Rf2
{[%clk 0:00:47.1]} 30... Rdd3 {[%clk 0:01:33.7]} 31. f5 {[%clk 0:00:38.2]} 31...
Bd5+ {[%clk 0:01:33.5]} 32. Kg1 {[%clk 0:00:26.5]} 32... Rxh3 {[%clk 0:01:32.9]}
33. Rh2 {[%clk 0:00:27.1]} 33... Rxh2 {[%clk 0:01:27.7]} 34. Kxh2 {[%clk
0:00:27.1]} 34... Rc2+ {[%clk 0:01:27]} 35. Kh3 {[%clk 0:00:27.4]} 35... Rxa2
{[%clk 0:01:25.6]} 36. Re1 {[%clk 0:00:27.2]} 36... c4 {[%clk 0:01:18]} 37. e6
{[%clk 0:00:24.8]} 37... f6 {[%clk 0:01:14.4]} 38. g5 {[%clk 0:00:19.3]} 38...
Ra3+ {[%clk 0:01:00.2]} 39. Kh2 {[%clk 0:00:16.7]} 39... fxg5 {[%clk 0:00:54.5]}
40. Bxg5 {[%clk 0:00:17.1]} 40... gxf5 {[%clk 0:00:54.5]} 41. Bc1 {[%clk
0:00:17.2]} 41... Rf3 {[%clk 0:00:50]} 42. Bh6+ {[%clk 0:00:14.6]} 42... Ke8
{[%clk 0:00:45.7]} 43. Bg7 {[%clk 0:00:14.4]} 43... c3 {[%clk 0:00:40.6]} 44.
Rc1 {[%clk 0:00:13.6]} 44... Bxe6 {[%clk 0:00:37.8]} 45. Bxc3 {[%clk 0:00:14]}
45... Bd5 {[%clk 0:00:38]} 46. Be5 {[%clk 0:00:13.9]} 46... Kd7 {[%clk
0:00:37.5]} 47. Ra1 {[%clk 0:00:13.5]} 47... a5 {[%clk 0:00:37.1]} 48. Bd4
{[%clk 0:00:13.2]} 48... c5 {[%clk 0:00:35.3]} 49. Be5 {[%clk 0:00:13.2]} 49...
Kc6 {[%clk 0:00:34.9]} 50. Re1 {[%clk 0:00:11.9]} 50... e6 {[%clk 0:00:34.5]}
51. Rg1 {[%clk 0:00:11.4]} 51... Rf2+ {[%clk 0:00:31.8]} 52. Kh3 {[%clk
0:00:10.5]} 52... Re2 {[%clk 0:00:29.2]} 53. Bf4 {[%clk 0:00:10.6]} 53... a4
{[%clk 0:00:29.5]} 54. Rg7 {[%clk 0:00:10.7]} 54... a3 {[%clk 0:00:29.2]} 55.
Ra7 {[%clk 0:00:11.1]} 55... a2 {[%clk 0:00:29.3]} 56. Rc7+ {[%clk 0:00:11.7]}
56... Kb5 {[%clk 0:00:29.4]} 57. Ra7 {[%clk 0:00:12.6]} 57... Kc4 {[%clk
0:00:29.6]} 58. Bg5 {[%clk 0:00:12.9]} 58... b5 {[%clk 0:00:29.7]} 59. Bf6
{[%clk 0:00:13.4]} 59... b4 {[%clk 0:00:29.9]} 60. Kg3 {[%clk 0:00:14.3]} 60...
h5 {[%clk 0:00:28.5]} 61. Kf4 {[%clk 0:00:14.7]} 61... Kb3 {[%clk 0:00:27.4]}
62. Ra8 {[%clk 0:00:14.7]} 62... Bxa8 {[%clk 0:00:26.7]} 63. Ba1 {[%clk
0:00:14.3]} 63... Bd5 {[%clk 0:00:26.4]} 0-1